[Event "FIDE World Rapid-ch Open 2018"]
[White "Belyakov, Bogdan"]
[Black "Khusnutdinov, Rustam"]
[Site "St. Petersburg"]
[Round "15.78"]
[Annotator "ChessBase"]
[Result "0-1"]
[Date "2018.12.28"]
[WhiteElo "2459"]
[BlackElo "2470"]
[PlyCount "104"]
[TimeControl "900+10"]

1. e4 {[%emt 0:0:0]} e6 {[%emt 0:0:0]} 2. d4 {[%emt 0:0:0]} d5 {[%emt 0:0:0]} 3. Nc3 {[%emt 0:0:0]} Nf6 {[%emt 0:0:6]} 4. Bg5 {[%emt 0:0:0]} Be7 {[%emt 0:0:12]} 5. e5 {[%emt 0:0:5]} Nfd7 {[%emt 0:0:1]} 6. h4 {[%emt 0:0:2]
} Nc6 {[%emt 0:0:1]} 7. Nf3 {[%emt 0:0:58]} Nb6 {[%emt 0:0:0]} 8. Qd2 {[%emt 0:1:5]} Bd7 {[%emt 0:0:1]} 9. a3 {[%emt 0:0:26]} f6 {[%emt 0:0:12]
} 10. exf6 {[%emt 0:0:8]} gxf6 {[%emt 0:0:7]} 11. Be3 {[%emt 0:1:12]
} Bd6 {[%emt 0:0:44]} 12. Nb5 {[%emt 0:0:4]} Qe7 {[%emt 0:0:0]} 13. 0-0-0 {[%emt 0:0:40]} 0-0-0 {[%emt 0:0:8]} 14. Kb1 {[%emt 0:0:49]} Kb8 {[%emt 0:0:38]} 15. h5 {[%emt 0:0:17]} Rhg8 {[%emt 0:0:28]} 16. h6 {[%emt 0:0:14]
} Be8 {[%emt 0:0:8]} 17. Nxd6 {[%emt 0:0:16]} cxd6 {[%emt 0:0:0]} 18. g3 {[%emt 0:0:43]} Rc8 {[%emt 0:3:56]} 19. Nh4 {[%emt 0:0:26]} a6 {[%emt 0:2:30]} 20. Re1 {[%emt 0:0:26]} Na7 {[%emt 0:0:45]} 21. Qa5 {[%emt 0:1:26]
} Qc7 {[%emt 0:0:46]} 22. Bd3 {[%emt 0:0:5]} Bb5 {[%emt 0:0:0]} 23. Rc1 {[%emt 0:0:41]} Nc6 {[%emt 0:0:35]} 24. Qd2 {[%emt 0:0:18]} Bxd3 {[%emt 0:0:47]} 25. cxd3 {[%emt 0:0:10]} Na4 {[%emt 0:0:44]} 26. b3 {[%emt 0:0:4]
} Nb6 {[%emt 0:0:11]} 27. Rhe1 {[%emt 0:0:27]} Qd7 {[%emt 0:0:0]} 28. Kb2 {[%emt 0:0:13]} Na8 {[%emt 0:0:23]} 29. Ng2 {[%emt 0:0:15]} Nc7 {[%emt 0:0:26]} 30. Nf4 {[%emt 0:0:9]} e5 {[%emt 0:1:3]} 31. Nh5 {[%emt 0:0:0]} Qf7 {[%emt 0:0:51]} 32. Rxc6 {[%emt 0:0:36]} bxc6 {[%emt 0:0:12]} 33. Ng7 {[%emt 0:0:2]} exd4 {[%emt 0:3:16]} 34. Bf4 {[%emt 0:0:33]} Qd7 {[%emt 0:0:21]
} 35. Qb4+ {[%emt 0:0:3]} Nb5 {[%emt 0:0:7]} 36. a4 {[%emt 0:0:0]} c5 {[%emt 0:0:21]} 37. Qa5 {[%emt 0:0:1]} Nc3 {[%emt 0:0:13]} 38. Qb6+ {[%emt 0:3:20]} Ka8 {[%emt 0:0:4]} 39. Qxa6+ {[%emt 0:0:13]} Qa7 {[%emt 0:0:1]
} 40. Qxa7+ {[%emt 0:1:41]} Kxa7 {[%emt 0:0:0]} 41. Re7+ {[%emt 0:0:2]
} Kb6 {[%emt 0:0:14]} 42. Nf5 {[%emt 0:0:31]} Rce8 {[%emt 0:0:0]} 43. Rxh7 {[%emt 0:1:5]} Re2+ {[%emt 0:0:1]} 44. Kc1 {[%emt 0:0:0]} Na2+ {[%emt 0:0:47]} 45. Kd1 {[%emt 0:0:1]} Nc3+ {[%emt 0:0:1]} 46. Kc1 {[%emt 0:0:1]
} Re1+ {[%emt 0:0:32]} 47. Kc2 {[%emt 0:0:7]} Rge8 {[%emt 0:0:0]} 48. Bd2 {[%emt 0:1:25]} R8e2 {[%emt 0:0:1]} 49. a5+ {[%emt 0:0:32]} Ka6 {[%emt 0:0:1]} 50. Re7 {[%emt 0:0:34]} Rxe7 {[%emt 0:0:3]} 51. Bxe1 {[%emt 0:0:2]
} Rxe1 {[%emt 0:0:8]} 52. h7 {[%emt 0:0:9]} Re8 {[%emt 0:0:0]} 0-1

[Event "FIDE World Rapid-ch Open 2018"]
[White "Lintchevski, Daniil"]
[Black "Apryshko, Gleb"]
[Site "St. Petersburg"]
[Round "15.79"]
[Annotator "ChessBase"]
[Result "1-0"]
[Date "2018.12.28"]
[WhiteElo "2516"]
[BlackElo "2385"]
[PlyCount "59"]
[TimeControl "900+10"]

1. e4 {[%emt 0:0:0]} e5 {[%emt 0:0:0]} 2. Nf3 {[%emt 0:0:0]} Nc6 {[%emt 0:0:2]
} 3. Nc3 {[%emt 0:0:2]} Nf6 {[%emt 0:0:2]} 4. a3 {[%emt 0:0:0]} d5 {[%emt 0:0:4]} 5. Bb5 {[%emt 0:0:5]} Nxe4 {[%emt 0:0:2]} 6. Qe2 {[%emt 0:0:19]
} Qd6 {[%emt 0:0:22]} 7. Nxe4 {[%emt 0:0:11]} dxe4 {[%emt 0:0:0]} 8. Qxe4 {[%emt 0:0:2]} Bd7 {[%emt 0:0:5]} 9. d3 {[%emt 0:0:34]} f6 {[%emt 0:3:6]
} 10. 0-0 {[%emt 0:0:32]} a6 {[%emt 0:1:29]} 11. Ba4 {[%emt 0:0:0]} 0-0-0 {[%emt 0:0:17]} 12. b4 {[%emt 0:0:10]} Ne7 {[%emt 0:0:3]} 13. Bxd7+ {[%emt 0:0:23]} Rxd7 {[%emt 0:0:18]} 14. a4 {[%emt 0:1:10]} Qc6 {[%emt 0:1:51]
} 15. Qe2 {[%emt 0:0:3]} Qc3 {[%emt 0:0:36]} 16. Rb1 {[%emt 0:0:0]} Nd5 {[%emt 0:2:3]} 17. Rb3 {[%emt 0:1:8]} Qc6 {[%emt 0:0:1]} 18. b5 {[%emt 0:0:2]} Qb6 {[%emt 0:3:16]} 19. bxa6 {[%emt 0:2:0]} Qxa6 {[%emt 0:0:4]
} 20. Bd2 {[%emt 0:0:4]} Bc5 {[%emt 0:1:43]} 21. Rfb1 {[%emt 0:0:5]
} c6 {[%emt 0:0:1]} 22. c4 {[%emt 0:0:29]} Ne7 {[%emt 0:0:49]
} 23. Be3 {[%emt 0:0:8]} Qa7 {[%emt 0:0:18]} 24. Bxc5 {[%emt 0:0:29]} Qxc5 {[%emt 0:0:1]} 25. Qb2 {[%emt 0:0:1]} Qa7 {[%emt 0:0:0]} 26. a5 {[%emt 0:0:0]} Rhd8 {[%emt 0:0:50]} 27. Ne1 {[%emt 0:1:0]} c5 {[%emt 0:1:3]} 28. a6 {[%emt 0:0:50]} Qxa6 {[%emt 0:0:30]} 29. Ra1 {[%emt 0:0:2]} Qc6 {[%emt 0:0:6]
} 30. Rb6 {[%emt 0:0:6]} 1-0

[Event "FIDE World Rapid-ch Open 2018"]
[White "Gabrielian, Artur"]
[Black "Borisenko, Viacheslav"]
[Site "St. Petersburg"]
[Round "15.80"]
[Annotator "ChessBase"]
[Result "1/2-1/2"]
[Date "2018.12.28"]
[WhiteElo "2499"]
[BlackElo "2289"]
[PlyCount "150"]
[TimeControl "900+10"]

1. e4 {[%emt 0:0:0]} c5 {[%emt 0:0:0]} 2. Nc3 {[%emt 0:0:0]} e6 {[%emt 0:0:0]} 3. Nf3 {[%emt 0:0:2]} Nc6 {[%emt 0:0:8]} 4. d4 {[%emt 0:0:3]} cxd4 {[%emt 0:0:2]} 5. Nxd4 {[%emt 0:0:1]} Nf6 {[%emt 0:0:2]} 6. a3 {[%emt 0:0:29]
} Be7 {[%emt 0:1:14]} 7. Be3 {[%emt 0:0:26]} 0-0 {[%emt 0:0:0]} 8. Be2 {[%emt 0:0:32]} d5 {[%emt 0:0:10]} 9. exd5 {[%emt 0:0:13]} Nxd5 {[%emt 0:0:46]} 10. Nxd5 {[%emt 0:0:3]} exd5 {[%emt 0:0:7]} 11. 0-0 {[%emt 0:0:49]
} Bf6 {[%emt 0:0:6]} 12. c3 {[%emt 0:0:20]} Re8 {[%emt 0:0:0]} 13. Re1 {[%emt 0:0:7]} Ne5 {[%emt 0:0:21]} 14. Qb3 {[%emt 0:0:25]} Nc4 {[%emt 0:1:46]} 15. Bxc4 {[%emt 0:0:11]} dxc4 {[%emt 0:0:5]} 16. Qxc4 {[%emt 0:0:4]
} Bxd4 {[%emt 0:0:11]} 17. Bxd4 {[%emt 0:0:6]} Bf5 {[%emt 0:0:0]} 18. Qb5 {[%emt 0:1:0]} Rxe1+ {[%emt 0:0:42]} 19. Rxe1 {[%emt 0:0:0]} Qd7 {[%emt 0:0:8]} 20. Qe2 {[%emt 0:2:53]} a6 {[%emt 0:0:21]} 21. h3 {[%emt 0:0:26]
} f6 {[%emt 0:0:10]} 22. Qf3 {[%emt 0:0:6]} Bg6 {[%emt 0:0:0]} 23. Qg3 {[%emt 0:2:54]} Re8 {[%emt 0:0:35]} 24. Rxe8+ {[%emt 0:0:11]} Qxe8 {[%emt 0:0:2]} 25. Qc7 {[%emt 0:0:8]} Be4 {[%emt 0:0:8]} 26. f3 {[%emt 0:0:24]
} Bc6 {[%emt 0:0:3]} 27. Kf2 {[%emt 0:0:8]} h6 {[%emt 0:0:0]} 28. Qf4 {[%emt 0:0:20]} Qg6 {[%emt 0:0:13]} 29. Qd2 {[%emt 0:0:9]} Bb5 {[%emt 0:0:37]} 30. g4 {[%emt 0:1:22]} Qb1 {[%emt 0:0:16]} 31. Kg3 {[%emt 0:0:0]} Qd3 {[%emt 0:0:14]} 32. Qf4 {[%emt 0:1:18]} Bc6 {[%emt 0:0:7]} 33. Qe3 {[%emt 0:0:47]} Qxe3 {[%emt 0:0:8]} 34. Bxe3 {[%emt 0:0:1]} Kf7 {[%emt 0:0:55]
} 35. f4 {[%emt 0:0:3]} f5 {[%emt 0:0:56]} 36. c4 {[%emt 0:0:0]} Ke6 {[%emt 0:0:43]} 37. Bd4 {[%emt 0:0:2]} g6 {[%emt 0:0:0]} 38. Kh4 {[%emt 0:0:18]} Bg2 {[%emt 0:1:24]} 39. b3 {[%emt 0:0:30]} h5 {[%emt 0:0:0]} 40. Kg3 {[%emt 0:1:1]} Bf1 {[%emt 0:0:23]} 41. gxh5 {[%emt 0:0:15]} gxh5 {[%emt 0:0:1]} 42. a4 {[%emt 0:0:14]} Kd6 {[%emt 0:0:11]} 43. a5 {[%emt 0:0:7]
} Ke6 {[%emt 0:0:16]} 44. Be5 {[%emt 0:0:6]} Kd7 {[%emt 0:0:0]} 45. Bd4 {[%emt 0:1:8]} Kc6 {[%emt 0:0:3]} 46. Kh4 {[%emt 0:0:9]} Kd6 {[%emt 0:0:8]} 47. Be3 {[%emt 0:0:14]} Kc6 {[%emt 0:0:2]} 48. b4 {[%emt 0:0:0]} Kd6 {[%emt 0:0:8]} 49. b5 {[%emt 0:0:11]} Kc7 {[%emt 0:1:7]} 50. Bc5 {[%emt 0:0:3]} Kd7 {[%emt 0:0:16]} 51. Bd4 {[%emt 0:0:8]} Kc7 {[%emt 0:0:1]
} 52. Be5+ {[%emt 0:0:10]} Kd7 {[%emt 0:0:3]} 53. Bb8 {[%emt 0:0:22]
} Kc8 {[%emt 0:0:2]} 54. Ba7 {[%emt 0:0:5]} Kc7 {[%emt 0:0:0]} 55. Bd4 {[%emt 0:0:4]} Kd6 {[%emt 0:0:4]} 56. c5+ {[%emt 0:0:12]} Kc7 {[%emt 0:0:28]} 57. Be5+ {[%emt 0:0:25]} Kc8 {[%emt 0:0:10]} 58. bxa6 {[%emt 0:0:40]
} bxa6 {[%emt 0:0:2]} 59. c6 {[%emt 0:0:6]} Kd8 {[%emt 0:0:0]} 60. Bd6 {[%emt 0:0:15]} Kc8 {[%emt 0:0:2]} 61. Be5 {[%emt 0:0:23]} Kd8 {[%emt 0:0:1]} 62. c7+ {[%emt 0:0:29]} Kd7 {[%emt 0:0:6]} 63. Kg3 {[%emt 0:0:4]
} Kc8 {[%emt 0:0:8]} 64. h4 {[%emt 0:0:1]} Be2 {[%emt 0:0:0]} 65. Kf2 {[%emt 0:0:1]} Bd1 {[%emt 0:0:3]} 66. Ke3 {[%emt 0:0:1]} Bg4 {[%emt 0:0:1]} 67. Kd3 {[%emt 0:0:2]} Bh3 {[%emt 0:0:3]} 68. Kd4 {[%emt 0:0:2]
} Bg4 {[%emt 0:0:1]} 69. Kd5 {[%emt 0:0:4]} Bh3 {[%emt 0:0:0]} 70. Ke6 {[%emt 0:0:8]} Bg4 {[%emt 0:0:3]} 71. Ke7 {[%emt 0:0:5]} Bh3 {[%emt 0:0:2]} 72. Kf6 {[%emt 0:0:2]} Bg4 {[%emt 0:0:2]} 73. Bd6 {[%emt 0:0:3]
} Bh3 {[%emt 0:0:4]} 74. Kg5 {[%emt 0:0:26]} Bg4 {[%emt 0:0:0]} 75. Be5 {[%emt 0:0:2]} Kd7 {[%emt 0:0:1]} 1/2-1/2

[Event "FIDE World Rapid-ch Open 2018"]
[White "Rechlis, Gad"]
[Black "Zubritskiy, Artyom"]
[Site "St. Petersburg"]
[Round "15.81"]
[Annotator "ChessBase"]
[Result "0-1"]
[Date "2018.12.28"]
[WhiteElo "2521"]
[BlackElo "2442"]
[PlyCount "40"]
[TimeControl "900+10"]

1. e4 {[%emt 0:0:1]} c5 {[%emt 0:0:0]} 2. Nc3 {[%emt 0:0:2]} d6 {[%emt 0:0:0]} 3. f4 {[%emt 0:0:4]} Nc6 {[%emt 0:0:19]} 4. Nf3 {[%emt 0:0:2]} g6 {[%emt 0:0:10]} 5. Bc4 {[%emt 0:0:4]} Bg7 {[%emt 0:0:2]} 6. 0-0 {[%emt 0:0:0]} Nf6 {[%emt 0:1:50]} 7. d3 {[%emt 0:0:10]} 0-0 {[%emt 0:0:8]} 8. Qe1 {[%emt 0:0:14]} Nd4 {[%emt 0:1:3]} 9. Qh4 {[%emt 0:4:28]} e6 {[%emt 0:0:0]} 10. f5 {[%emt 0:0:29]} d5 {[%emt 0:0:33]} 11. fxg6 {[%emt 0:7:29]} fxg6 {[%emt 0:2:0]} 12. exd5 {[%emt 0:0:35]} exd5 {[%emt 0:0:40]} 13. Nxd5 {[%emt 0:0:36]
} Nxd5 {[%emt 0:0:23]} 14. Bg5 {[%emt 0:0:1]} Qd7 {[%emt 0:0:0]} 15. Nxd4 {[%emt 0:0:16]} Bxd4+ {[%emt 0:0:4]} 16. Kh1 {[%emt 0:0:1]} Rxf1+ {[%emt 0:0:33]} 17. Rxf1 {[%emt 0:0:1]} b5 {[%emt 0:0:2]} 18. Bb3 {[%emt 0:2:50]
} Bb7 {[%emt 0:0:12]} 19. c3 {[%emt 0:0:11]} Bg7 {[%emt 0:0:0]} 20. Be7 {[%emt 0:0:18]} c4 {[%emt 0:0:14]} 0-1

[Event "FIDE World Rapid-ch Open 2018"]
[White "Golubov, Saveliy"]
[Black "Sharma, Dinesh K."]
[Site "St. Petersburg"]
[Round "15.82"]
[Annotator "ChessBase"]
[Result "1/2-1/2"]
[Date "2018.12.28"]
[WhiteElo "2482"]
[BlackElo "2295"]
[PlyCount "57"]
[TimeControl "900+10"]

1. e4 {[%emt 0:0:0]} e6 {[%emt 0:0:0]} 2. b3 {[%emt 0:0:9]} a5 {[%emt 0:0:0]} 3. Bb2 {[%emt 0:0:2]} a4 {[%emt 0:0:0]} 4. bxa4 {[%emt 0:0:1]} d5 {[%emt 0:0:6]} 5. exd5 {[%emt 0:0:2]} exd5 {[%emt 0:0:2]} 6. Nf3 {[%emt 0:0:2]
} Nf6 {[%emt 0:0:3]} 7. Bd3 {[%emt 0:0:7]} Be7 {[%emt 0:0:0]} 8. h3 {[%emt 0:0:7]} 0-0 {[%emt 0:0:5]} 9. 0-0 {[%emt 0:0:3]} Nbd7 {[%emt 0:0:3]
} 10. Nc3 {[%emt 0:0:46]} Nc5 {[%emt 0:0:5]} 11. Be2 {[%emt 0:0:0]} Nxa4 {[%emt 0:0:37]} 12. Nxa4 {[%emt 0:0:1]} Rxa4 {[%emt 0:0:3]} 13. c4 {[%emt 0:0:2]} Ra8 {[%emt 0:0:15]} 14. a4 {[%emt 0:0:5]} h6 {[%emt 0:0:27]
} 15. a5 {[%emt 0:0:1]} c6 {[%emt 0:0:7]} 16. a6 {[%emt 0:0:0]} Rxa6 {[%emt 0:0:54]} 17. Rxa6 {[%emt 0:0:1]} bxa6 {[%emt 0:0:1]} 18. Ne5 {[%emt 0:0:2]} Qb6 {[%emt 0:1:1]} 19. Qa1 {[%emt 0:0:5]} Be6 {[%emt 0:0:33]
} 20. cxd5 {[%emt 0:0:11]} Bxd5 {[%emt 0:0:32]} 21. Ng4 {[%emt 0:0:10]
} Qd8 {[%emt 0:4:2]} 22. Bxa6 {[%emt 0:0:19]} Nxg4 {[%emt 0:0:0]} 23. hxg4 {[%emt 0:0:2]} Qd7 {[%emt 0:0:10]} 24. Be2 {[%emt 0:0:26]} f6 {[%emt 0:0:9]} 25. Qc1 {[%emt 0:0:39]} Re8 {[%emt 0:1:6]} 26. Re1 {[%emt 0:0:20]
} Bd6 {[%emt 0:0:35]} 27. Bf3 {[%emt 0:0:5]} Rxe1+ {[%emt 0:0:0]} 28. Qxe1 {[%emt 0:0:1]} Bxf3 {[%emt 0:0:28]} 29. gxf3 {[%emt 0:0:0]} 1/2-1/2

[Event "FIDE World Rapid-ch Open 2018"]
[White "Zakhartsov, Vladimir"]
[Black "Vaisser, Anatoli"]
[Site "St. Petersburg"]
[Round "15.83"]
[Annotator "ChessBase"]
[Result "1-0"]
[Date "2018.12.28"]
[WhiteElo "2486"]
[BlackElo "2505"]
[PlyCount "87"]
[TimeControl "900+10"]

1. c4 {[%emt 0:0:0]} f5 {[%emt 0:0:0]} 2. d4 {[%emt 0:0:0]} Nf6 {[%emt 0:0:0]} 3. Nc3 {[%emt 0:0:0]} e6 {[%emt 0:0:0]} 4. g3 {[%emt 0:0:22]} d5 {[%emt 0:0:5]
} 5. Bg2 {[%emt 0:0:3]} c6 {[%emt 0:0:11]} 6. Nf3 {[%emt 0:0:0]} Bd6 {[%emt 0:0:3]} 7. c5 {[%emt 0:0:8]} Bc7 {[%emt 0:0:9]} 8. Bf4 {[%emt 0:0:2]
} Bxf4 {[%emt 0:0:26]} 9. gxf4 {[%emt 0:0:2]} Nbd7 {[%emt 0:0:0]} 10. b4 {[%emt 0:0:15]} Ne4 {[%emt 0:0:10]} 11. Nxe4 {[%emt 0:0:11]} fxe4 {[%emt 0:0:6]} 12. Ne5 {[%emt 0:0:13]} 0-0 {[%emt 0:0:32]} 13. e3 {[%emt 0:0:2]
} Nxe5 {[%emt 0:0:8]} 14. fxe5 {[%emt 0:0:22]} Qh4 {[%emt 0:0:0]} 15. 0-0 {[%emt 0:0:9]} Bd7 {[%emt 0:0:2]} 16. f4 {[%emt 0:1:6]} exf3 {[%emt 0:1:12]} 17. Rxf3 {[%emt 0:0:2]} Rxf3 {[%emt 0:0:14]} 18. Qxf3 {[%emt 0:0:4]} a5 {[%emt 0:1:49]} 19. bxa5 {[%emt 0:0:28]} Rxa5 {[%emt 0:0:0]} 20. Rb1 {[%emt 0:0:29]} Ra7 {[%emt 0:2:54]} 21. Rf1 {[%emt 0:0:15]} Qe7 {[%emt 0:0:2]} 22. Rf2 {[%emt 0:0:2]} Be8 {[%emt 0:0:18]} 23. Bh3 {[%emt 0:0:45]
} Bf7 {[%emt 0:0:44]} 24. Qg4 {[%emt 0:0:57]} Ra8 {[%emt 0:0:0]} 25. Rg2 {[%emt 0:0:12]} Qf8 {[%emt 0:0:2]} 26. Qf4 {[%emt 0:0:20]} Re8 {[%emt 0:0:13]} 27. Qf6 {[%emt 0:0:46]} Kh8 {[%emt 0:1:25]} 28. Qh4 {[%emt 0:0:12]
} Qe7 {[%emt 0:0:27]} 29. Qxe7 {[%emt 0:0:43]} Rxe7 {[%emt 0:0:0]} 30. Rb2 {[%emt 0:0:1]} Bg6 {[%emt 0:0:15]} 31. Bf1 {[%emt 0:0:20]} Be4 {[%emt 0:0:13]} 32. Ba6 {[%emt 0:0:8]} h5 {[%emt 0:1:2]} 33. Bxb7 {[%emt 0:0:35]
} Rf7 {[%emt 0:0:30]} 34. a4 {[%emt 0:0:12]} Bd3 {[%emt 0:0:0]} 35. Bxc6 {[%emt 0:1:7]} Rf1+ {[%emt 0:0:3]} 36. Kg2 {[%emt 0:0:1]} Ra1 {[%emt 0:0:6]} 37. Bd7 {[%emt 0:3:56]} Be4+ {[%emt 0:0:12]} 38. Kf2 {[%emt 0:0:58]
} Rh1 {[%emt 0:0:10]} 39. c6 {[%emt 0:1:11]} Rxh2+ {[%emt 0:0:0]} 40. Kg3 {[%emt 0:0:1]} Rxb2 {[%emt 0:0:9]} 41. c7 {[%emt 0:0:1]} g5 {[%emt 0:2:1]} 42. c8=Q+ {[%emt 0:0:9]} Kg7 {[%emt 0:0:3]} 43. Bxe6 {[%emt 0:0:26]
} h4+ {[%emt 0:0:10]} 44. Kh3 {[%emt 0:0:1]} 1-0

[Event "FIDE World Rapid-ch Open 2018"]
[White "Kobo, Ori"]
[Black "Anisimov, Pavel"]
[Site "St. Petersburg"]
[Round "15.84"]
[Annotator "ChessBase"]
[Result "1-0"]
[Date "2018.12.28"]
[WhiteElo "2494"]
[BlackElo "2533"]
[PlyCount "95"]
[TimeControl "900+10"]

1. Nf3 {[%emt 0:0:0]} d5 {[%emt 0:0:0]} 2. g3 {[%emt 0:0:0]} c5 {[%emt 0:0:0]} 3. Bg2 {[%emt 0:0:1]} Nc6 {[%emt 0:0:0]} 4. d4 {[%emt 0:0:5]} e6 {[%emt 0:0:0]} 5. 0-0 {[%emt 0:0:8]} Qb6 {[%emt 0:0:1]} 6. dxc5 {[%emt 0:0:0]} Bxc5 {[%emt 0:0:1]} 7. c4 {[%emt 0:0:1]} d4 {[%emt 0:0:2]} 8. Nbd2 {[%emt 0:1:3]} Nf6 {[%emt 0:0:27]} 9. Nb3 {[%emt 0:0:15]} e5 {[%emt 0:0:0]} 10. Nxc5 {[%emt 0:0:46]} Qxc5 {[%emt 0:0:2]} 11. e3 {[%emt 0:2:5]} d3 {[%emt 0:2:57]} 12. Nd2 {[%emt 0:0:1]} 0-0 {[%emt 0:1:5]} 13. a3 {[%emt 0:0:37]
} Bg4 {[%emt 0:1:32]} 14. Qb3 {[%emt 0:0:55]} Be2 {[%emt 0:0:0]} 15. Re1 {[%emt 0:0:8]} Rab8 {[%emt 0:0:1]} 16. Qc3 {[%emt 0:0:45]} a5 {[%emt 0:0:30]} 17. Rb1 {[%emt 0:0:41]} a4 {[%emt 0:0:52]} 18. b4 {[%emt 0:0:0]} axb3 {[%emt 0:0:5]} 19. Rxb3 {[%emt 0:0:21]} Rfc8 {[%emt 0:0:51]} 20. Rb5 {[%emt 0:1:32]} Qe7 {[%emt 0:0:34]} 21. Bb2 {[%emt 0:0:15]} Nd7 {[%emt 0:0:21]
} 22. Nb3 {[%emt 0:1:56]} Rc7 {[%emt 0:2:11]} 23. Bh3 {[%emt 0:0:0]} f6 {[%emt 0:0:33]} 24. Bf5 {[%emt 0:1:7]} Na7 {[%emt 0:0:27]} 25. Ra5 {[%emt 0:0:2]} b5 {[%emt 0:0:7]} 26. c5 {[%emt 0:1:17]} Nc6 {[%emt 0:0:0]} 27. Ra6 {[%emt 0:0:21]} e4 {[%emt 0:1:38]} 28. Rc1 {[%emt 0:0:29]} Nf8 {[%emt 0:1:44]} 29. Nd2 {[%emt 0:0:10]} b4 {[%emt 0:0:9]} 30. Qc4+ {[%emt 0:0:24]
} Kh8 {[%emt 0:0:3]} 31. Qxe4 {[%emt 0:0:22]} bxa3 {[%emt 0:0:0]} 32. Bxa3 {[%emt 0:0:5]} Ne5 {[%emt 0:0:42]} 33. c6 {[%emt 0:0:9]} Qd8 {[%emt 0:0:13]} 34. Qd4 {[%emt 0:0:11]} Qe8 {[%emt 0:0:21]} 35. Qd6 {[%emt 0:0:9]
} Qd8 {[%emt 0:0:13]} 36. Qxd8 {[%emt 0:0:17]} Rxd8 {[%emt 0:0:0]} 37. f4 {[%emt 0:0:16]} Nf3+ {[%emt 0:0:4]} 38. Nxf3 {[%emt 0:0:2]} d2 {[%emt 0:0:2]} 39. Nxd2 {[%emt 0:0:8]} Bxa6 {[%emt 0:0:2]} 40. Nb3 {[%emt 0:0:21]
} Kg8 {[%emt 0:0:27]} 41. Nd4 {[%emt 0:0:10]} Bc8 {[%emt 0:0:0]} 42. Be4 {[%emt 0:0:13]} Ba6 {[%emt 0:0:6]} 43. Bxf8 {[%emt 0:0:10]} Rxf8 {[%emt 0:0:17]} 44. Bd5+ {[%emt 0:0:10]} Rff7 {[%emt 0:0:15]} 45. Ra1 {[%emt 0:0:6]
} Bc8 {[%emt 0:0:9]} 46. Nb5 {[%emt 0:0:2]} Kf8 {[%emt 0:0:0]} 47. Ra8 {[%emt 0:0:18]} Rfe7 {[%emt 0:0:12]} 48. Nxc7 {[%emt 0:0:4]} 1-0

[Event "FIDE World Rapid-ch Open 2018"]
[White "Belozerov, Andrei"]
[Black "Pogosyan, Stefan"]
[Site "St. Petersburg"]
[Round "15.85"]
[Annotator "ChessBase"]
[Result "1/2-1/2"]
[Date "2018.12.28"]
[WhiteElo "2528"]
[BlackElo "2365"]
[PlyCount "172"]
[TimeControl "900+10"]

1. e4 e5 2. Nf3 {[%emt 0:0:0]} Nc6 {[%emt 0:0:0]} 3. Nc3 {[%emt 0:0:0]} Nf6 {[%emt 0:0:0]} 4. Bc4 {[%emt 0:0:0]} Nxe4 {[%emt 0:0:4]} 5. Nxe4 {[%emt 0:0:0]
} d5 {[%emt 0:0:1]} 6. Bd3 {[%emt 0:0:0]} dxe4 {[%emt 0:0:0]} 7. Bxe4 {[%emt 0:0:1]} Bd6 {[%emt 0:0:3]} 8. 0-0 {[%emt 0:0:7]} 0-0 {[%emt 0:0:4]} 9. Re1 {[%emt 0:0:5]} Bg4 {[%emt 0:1:5]} 10. h3 {[%emt 0:0:0]} Bh5 {[%emt 0:0:45]} 11. c3 {[%emt 0:1:30]} f5 {[%emt 0:5:34]} 12. Bd5+ {[%emt 0:1:42]} Kh8 {[%emt 0:1:6]} 13. d3 {[%emt 0:0:2]} Ne7 {[%emt 0:1:16]
} 14. Bg5 {[%emt 0:2:56]} c6 {[%emt 0:0:32]} 15. Bb3 {[%emt 0:0:0]} h6 {[%emt 0:0:19]} 16. Bxe7 {[%emt 0:0:9]} Qxe7 {[%emt 0:0:1]} 17. Nxe5 {[%emt 0:2:4]} Qg5 {[%emt 0:1:43]} 18. Qc1 {[%emt 0:1:7]} f4 {[%emt 0:0:12]
} 19. d4 {[%emt 0:0:8]} Rae8 {[%emt 0:0:51]} 20. Bd1 {[%emt 0:0:0]} Bxe5 {[%emt 0:1:28]} 21. Rxe5 {[%emt 0:0:45]} Rxe5 {[%emt 0:0:14]} 22. dxe5 {[%emt 0:0:1]} Bxd1 {[%emt 0:0:6]} 23. Qxd1 {[%emt 0:0:1]} f3 {[%emt 0:0:2]
} 24. g3 {[%emt 0:0:5]} Qxe5 {[%emt 0:0:1]} 25. Qd3 {[%emt 0:0:0]} Qe6 {[%emt 0:1:33]} 26. Kh2 {[%emt 0:0:13]} a5 {[%emt 0:0:46]} 27. b3 {[%emt 0:0:14]} h5 {[%emt 0:0:54]} 28. Rd1 {[%emt 0:0:27]} h4 {[%emt 0:0:0]} 29. gxh4 {[%emt 0:0:23]} Qe5+ {[%emt 0:0:35]} 30. Kh1 {[%emt 0:0:1]
} Qf4 {[%emt 0:0:10]} 31. Rg1 {[%emt 0:0:21]} Qxh4 {[%emt 0:0:18]} 32. Rg3 {[%emt 0:0:17]
} Qf6 {[%emt 0:0:12]} 33. Kh2 {[%emt 0:0:15]} Rf7 {[%emt 0:0:0]} 34. Qe4 {[%emt 0:0:30]} Kg8 {[%emt 0:0:11]} 35. Qe8+ {[%emt 0:0:25]} Rf8 {[%emt 0:0:7]} 36. Qe3 {[%emt 0:0:5]} Qd6 {[%emt 0:0:18]} 37. Qd4 {[%emt 0:0:14]
} Qxd4 {[%emt 0:0:4]} 38. cxd4 {[%emt 0:0:1]} Rf4 {[%emt 0:0:0]} 39. Rg4 {[%emt 0:0:7]} Rf5 {[%emt 0:0:13]} 40. Kg3 {[%emt 0:0:2]} a4 {[%emt 0:0:5]} 41. Rf4 {[%emt 0:0:10]} Rg5+ {[%emt 0:0:22]} 42. Kh4 {[%emt 0:0:34]
} axb3 {[%emt 0:0:14]} 43. axb3 {[%emt 0:0:5]} Rb5 {[%emt 0:0:0]} 44. Rxf3 {[%emt 0:0:4]} Rb4 {[%emt 0:0:1]} 45. Rd3 {[%emt 0:0:9]} c5 {[%emt 0:0:19]} 46. Kg5 {[%emt 0:0:6]} cxd4 {[%emt 0:0:2]} 47. Kf5 {[%emt 0:0:13]
} Kh7 {[%emt 0:0:5]} 48. Ke5 {[%emt 0:0:10]} Kg6 {[%emt 0:0:0]} 49. Rg3+ {[%emt 0:0:13]} Kh5 {[%emt 0:0:27]} 50. Kd5 {[%emt 0:0:5]} b6 {[%emt 0:0:8]} 51. Kc6 {[%emt 0:0:8]} g5 {[%emt 0:0:3]} 52. Kb7 {[%emt 0:0:0]} Kh4 {[%emt 0:0:11]} 53. Kc6 {[%emt 0:0:14]} Kh5 {[%emt 0:0:13]} 54. Rd3 {[%emt 0:0:11]} g4 {[%emt 0:0:12]} 55. Kd5 {[%emt 0:0:19]} gxh3 {[%emt 0:0:1]
} 56. Rxh3+ {[%emt 0:0:1]} Kg4 {[%emt 0:0:1]} 57. Rg3+ {[%emt 0:0:19]
} Kf4 {[%emt 0:0:9]} 58. Rd3 {[%emt 0:0:3]} Kf5 {[%emt 0:0:0]} 59. Rf3+ {[%emt 0:0:11]} Kg4 {[%emt 0:0:10]} 60. Rg3+ {[%emt 0:0:5]} Kf4 {[%emt 0:0:0]} 61. Rh3 {[%emt 0:0:3]} Kg4 {[%emt 0:0:15]} 62. Rd3 {[%emt 0:0:25]
} Kf5 {[%emt 0:0:1]} 63. f3 {[%emt 0:0:11]} Kf6 {[%emt 0:0:0]} 64. Ke4 {[%emt 0:0:5]} Ke6 {[%emt 0:0:4]} 65. f4 {[%emt 0:0:5]} Kf6 {[%emt 0:0:1]} 66. f5 {[%emt 0:0:25]} Rb5 {[%emt 0:0:45]} 67. Rf3 {[%emt 0:0:0]} d3 {[%emt 0:0:24]} 68. Rxd3 {[%emt 0:0:7]} Rb4+ {[%emt 0:0:0]} 69. Kd5 {[%emt 0:0:10]} Kxf5 {[%emt 0:0:8]} 70. Rf3+ {[%emt 0:0:2]} Kg4 {[%emt 0:0:10]
} 71. Rc3 {[%emt 0:0:3]} Kf5 {[%emt 0:0:5]} 72. Rd3 {[%emt 0:0:0]} Kf6 {[%emt 0:0:19]} 73. Rf3+ {[%emt 0:0:6]} Ke7 {[%emt 0:0:7]} 74. Kc6 {[%emt 0:0:2]} Ke6 {[%emt 0:0:8]} 75. Rh3 {[%emt 0:0:5]} Ke5 {[%emt 0:0:8]
} 76. Rh5+ {[%emt 0:0:22]} Kd4 {[%emt 0:0:15]} 77. Rh3 {[%emt 0:0:30]
} Ke5 {[%emt 0:0:18]} 78. Rg3 {[%emt 0:0:3]} Kd4 {[%emt 0:0:0]} 79. Kd6 {[%emt 0:0:7]} Rb5 {[%emt 0:0:15]} 80. Kc6 {[%emt 0:0:14]} Rb4 {[%emt 0:0:0]} 81. Kb7 {[%emt 0:0:8]} Kc5 {[%emt 0:0:18]} 82. Ka6 {[%emt 0:0:4]
} Rh4 {[%emt 0:0:12]} 83. Rg5+ {[%emt 0:0:6]} Kb4 {[%emt 0:0:0]} 84. Rb5+ {[%emt 0:0:4]} Ka3 {[%emt 0:0:1]} 85. Kxb6 {[%emt 0:0:5]} Rb4 {[%emt 0:0:1]} 86. Rxb4 {[%emt 0:0:1]} Kxb4 {[%emt 0:0:1]} 1/2-1/2

[Event "FIDE World Rapid-ch Open 2018"]
[White "Fakhrutdinov, Timur"]
[Black "Vlassov, Nikolai"]
[Site "St. Petersburg"]
[Round "15.86"]
[Annotator "ChessBase"]
[Result "1-0"]
[Date "2018.12.28"]
[WhiteElo "2481"]
[BlackElo "2401"]
[PlyCount "49"]
[TimeControl "900+10"]

1. e4 {[%emt 0:0:0]} Nc6 {[%emt 0:0:0]} 2. Nf3 {[%emt 0:0:18]} d5 {[%emt 0:0:0]
} 3. exd5 {[%emt 0:0:11]} Qxd5 {[%emt 0:0:0]} 4. Nc3 {[%emt 0:0:0]} Qa5 {[%emt 0:0:0]} 5. Bb5 {[%emt 0:0:20]} Bd7 {[%emt 0:0:0]} 6. Qe2 {[%emt 0:2:27]} 0-0-0 {[%emt 0:1:15]} 7. 0-0 {[%emt 0:0:40]} a6 {[%emt 0:0:1]
} 8. Bxc6 {[%emt 0:2:4]} Bxc6 {[%emt 0:0:2]} 9. Ne5 {[%emt 0:0:0]} Be8 {[%emt 0:0:2]} 10. Rb1 {[%emt 0:0:53]} f6 {[%emt 0:0:5]} 11. Nc4 {[%emt 0:0:32]} Qh5 {[%emt 0:0:2]} 12. Qe3 {[%emt 0:0:46]} e5 {[%emt 0:0:0]} 13. Qa7 {[%emt 0:3:43]} Bc6 {[%emt 0:0:2]} 14. Na5 {[%emt 0:0:50]} Ne7 {[%emt 0:0:15]} 15. Nxc6 {[%emt 0:0:59]} Nxc6 {[%emt 0:0:1]} 16. Qa8+ {[%emt 0:0:4]
} Nb8 {[%emt 0:0:54]} 17. d3 {[%emt 0:0:14]} c5 {[%emt 0:1:55]
} 18. Be3 {[%emt 0:0:37]} Kc7 {[%emt 0:0:56]} 19. b4 {[%emt 0:0:43]} Nc6 {[%emt 0:2:32]
} 20. Nd5+ {[%emt 0:0:6]} Rxd5 {[%emt 0:0:11]} 21. bxc5 {[%emt 0:0:3]
} Nd8 {[%emt 0:0:36]} 22. c6 {[%emt 0:0:48]} Rb5 {[%emt 0:0:0]} 23. cxb7 {[%emt 0:0:8]} Bb4 {[%emt 0:1:29]} 24. Qc8+ {[%emt 0:0:9]} Kd6 {[%emt 0:0:4]} 25. b8=Q+ {[%emt 0:0:21]} 1-0